fUST/lending_fUST_20260211
["ID","MTS","AMOUNT","RATE_DAILY","PERIOD"]
[405051855,1770755438753,-151.0,0.00039976,2]
[405051857,1770755438762,-151.0,0.00039976,2]
[405051859,1770755438774,-151.0,0.00039976,2]
[405051861,1770755438783,-151.0,0.00039976,2]
[405051863,1770755438793,-151.0,0.00039976,2]
[405051865,1770755438803,-151.0,0.00039976,2]
[405051867,1770755438812,-184.05912409,0.00039976,2]
[405051869,1770755438822,-2008.55364462,0.0003998,3]
[405051871,1770755438832,-190.27,0.0003998,10]
[405051872,1770755438841,-3000.0,0.00039989,3]
[405051874,1770755438850,-3000.0,0.00039989,3]
[405051876,1770755438860,-49812.67747236,0.0003999,2]
[405051898,1770755440734,-3e-08,0.0003999,2]
[405052026,1770755446627,-11037.45485949,0.0003999,2]
[405052027,1770755446636,-408.64,0.0003999,3]
[405052028,1770755446645,-18076.9828016,0.0003999,3]
[405052029,1770755446654,-552.0,0.0003999,30]
[405052030,1770755446663,-250.0,0.00039998,30]
[405052031,1770755446672,-250.0,0.00039998,30]
[405052032,1770755446682,-250.0,0.00039998,30]
[405052033,1770755446691,-250.0,0.00039998,30]
[405052034,1770755446699,-250.0,0.00039998,30]
[405052035,1770755446708,-250.0,0.00039998,30]
[405052036,1770755446717,-250.0,0.00039998,30]
[405052037,1770755446727,-250.0,0.00039998,30]
[405052038,1770755446736,-250.0,0.00039998,30]
[405052039,1770755446745,-250.0,0.00039998,30]
[405052040,1770755446755,-250.0,0.00039998,30]
[405052041,1770755446764,-250.0,0.00039998,30]
[405052042,1770755446773,-250.0,0.00039998,30]
[405052043,1770755446782,-250.0,0.00039998,30]
[405052044,1770755446792,-250.0,0.00039998,30]
[405052045,1770755446801,-250.0,0.00039998,30]
[405052046,1770755446810,-250.0,0.00039998,30]
[405052047,1770755446819,-286.28525849,0.00039998,30]
[405052048,1770755446829,-250.0,0.00039998,30]
[405052049,1770755446839,-250.0,0.00039998,30]
[405052050,1770755446849,-250.0,0.00039998,30]
[405052051,1770755446860,-250.0,0.00039998,30]
[405052052,1770755446869,-250.0,0.00039998,30]
[405052053,1770755446879,-250.0,0.00039998,30]
[405052054,1770755446890,-250.0,0.00039998,30]
[405052055,1770755446899,-250.0,0.00039998,30]
[405052056,1770755446908,-250.0,0.00039998,30]
[405052057,1770755446917,-250.0,0.00039998,30]
[405052058,1770755446927,-250.0,0.00039998,30]
[405052059,1770755446936,-250.0,0.00039998,30]
[405052060,1770755446946,-250.0,0.00039998,30]
[405052061,1770755446955,-250.0,0.00039998,30]
[405052062,1770755446964,-250.0,0.00039998,30]
[405052063,1770755446974,-250.0,0.00039998,30]
[405052064,1770755446982,-250.0,0.00039998,30]
[405052065,1770755446992,-250.0,0.00039998,30]
[405052066,1770755447001,-250.0,0.00039998,30]
[405052067,1770755447011,-250.0,0.00039998,30]
[405052068,1770755447021,-250.0,0.00039998,30]
[405052069,1770755447030,-500.0,0.00039998,30]
[405052070,1770755447039,-500.0,0.00039998,30]
[405052071,1770755447049,-500.0,0.00039998,30]
[405052072,1770755447058,-500.0,0.00039998,30]
[405052073,1770755447068,-500.0,0.00039998,30]
[405052074,1770755447078,-250.0,0.00039998,30]
[405052075,1770755447087,-500.0,0.00039998,30]
[405052076,1770755447096,-500.0,0.00039998,30]
[405052077,1770755447105,-250.0,0.00039998,30]
[405052078,1770755447115,-500.0,0.00039998,30]
[405052079,1770755447125,-500.0,0.00039998,30]
[405052080,1770755447134,-250.0,0.00039998,30]
[405052081,1770755447143,-500.0,0.00039998,30]
[405052082,1770755447154,-500.0,0.00039998,30]
[405052083,1770755447165,-250.0,0.00039998,30]
[405052084,1770755447174,-500.0,0.00039998,30]
[405052085,1770755447184,-500.0,0.00039998,30]
[405052086,1770755447194,-250.0,0.00039998,30]
[405052087,1770755447205,-500.0,0.00039998,30]
[405052088,1770755447214,-500.0,0.00039998,30]
[405052089,1770755447224,-250.0,0.00039998,30]
[405052090,1770755447234,-500.0,0.00039998,30]
[405052091,1770755447243,-500.0,0.00039998,30]
[405052092,1770755447253,-250.0,0.00039998,30]
[405052093,1770755447263,-500.0,0.00039998,30]
[405052094,1770755447273,-500.0,0.00039998,30]
[405052095,1770755447283,-250.0,0.00039998,30]
[405052096,1770755447292,-500.0,0.00039998,30]
[405052097,1770755447302,-335.26760515,0.00039998,30]
[405052098,1770755447311,-500.0,0.00039998,30]
[405052099,1770755447321,-500.0,0.00039998,30]
[405052100,1770755447331,-500.0,0.00039998,30]
[405052101,1770755447340,-500.0,0.00039998,30]
[405052102,1770755447350,-500.0,0.00039998,30]
[405052103,1770755447359,-500.0,0.00039998,30]
[405052104,1770755447368,-500.0,0.00039998,30]
[405052105,1770755447377,-500.0,0.00039998,30]
[405052106,1770755447387,-500.0,0.00039998,30]
[405052107,1770755447396,-500.0,0.00039998,30]
[405052108,1770755447405,-500.0,0.00039998,30]
[405052109,1770755447415,-500.0,0.00039998,30]
[405052110,1770755447425,-500.0,0.00039998,30]
[405052111,1770755447434,-500.0,0.00039998,30]
[405052112,1770755447444,-681.546722,0.00039999,2]
[405052113,1770755447453,-3000.0,0.00039999,30]
[405052114,1770755447462,-32368.16580859,0.0004,120]
[405052143,1770755576915,-4695.6131716,0.00030137,120]
[405052175,1770755962975,-499.99999994,0.00024211,2]
[405052176,1770755966872,-311.99691409,0.00024211,2]
[405052206,1770756144384,-430.99262353,0.00023969,2]
[405052207,1770756146632,-231.0086626,0.00023969,2]
[405052208,1770756148796,-249.35732485,0.00023969,2]
[405052209,1770756152174,-549.51467285,0.00023969,2]
[405052210,1770756155172,-160.00577039,0.00023969,2]
[405052211,1770756158417,-500.0,0.00023969,2]
[405052232,1770756325343,4358.54951527,0.000237,2]
[405052234,1770756335123,-150.0,0.00024399,2]
[405052235,1770756335144,-137.76952077,0.00026399,2]
[405052258,1770756431085,-3221.41437872,0.00025583,2]
[405052259,1770756431107,-39.23047923,0.00026399,2]
[405052260,1770756431127,-166.66666668,0.0002779,2]
[405052261,1770756431148,-204.0,0.00028399,2]
[405052262,1770756431169,-283.22,0.000301,2]
[405052263,1770756431190,-231.0,0.00030399,2]
[405052264,1770756431210,-463.1643252,0.00032972,65]
[405052265,1770756431232,-463.1643252,0.00033139,69]
[405052266,1770756431253,-500.0,0.00033198,7]
[405052267,1770756431274,-463.1643252,0.00033306,72]
[405052268,1770756431295,-463.1643252,0.00033473,76]
[405052269,1770756431317,-463.1643252,0.00033639,80]
[405052270,1770756431338,-463.1643252,0.00033806,83]
[405052271,1770756431359,-463.1643252,0.00033973,87]
[405052272,1770756431380,-1013.10878347,0.00034373,2]
[405052273,1770756445121,-393.17569533,0.00030716,16]
[405052274,1770756445150,-393.17569533,0.00030861,20]
[405052275,1770756445177,-393.17569533,0.00031006,24]
[405052276,1770756445207,-393.17569533,0.00031151,28]
[405052277,1770756445238,-393.17569533,0.00031296,31]
[405052278,1770756445261,-393.17569533,0.0003144,35]
[405052279,1770756445290,-393.17569533,0.00031585,39]
[405052280,1770756445316,-500.0,0.00033544,7]
[405052281,1770756445343,-500.0,0.00033803,7]
[405052282,1770756445366,-500.0,0.00033945,7]
[405052283,1770756445390,-217.05935513,0.00034373,2]
[405052284,1770756445414,-430.04740143,0.00034542,7]
[405052285,1770756448089,-393.17569533,0.0003202,50]
[405052286,1770756448114,-393.17569533,0.00032165,54]
[405052287,1770756448141,-393.17569533,0.00032309,57]
[405052288,1770756448167,-393.17569533,0.00032454,61]
[405052289,1770756448191,-69.95259857,0.00034542,7]
[405052290,1770756448216,-599.75315822,0.00034596,7]
[405052291,1770756448239,-20345.4028415,0.00034858,2]
[405052292,1770756448262,-573.391654,0.00035162,2]
[405052293,1770756448285,-198.060069,0.00037398,2]
[405052294,1770756448311,-323.0,0.00038148,2]
[405052295,1770756448336,-323.0,0.0003822,120]
[405052296,1770756448357,-323.0,0.00038306,2]
[405052297,1770756448495,-323.0,0.00038313,2]
[405052298,1770756448515,-712.0,0.00038394,11]
[405052299,1770756448536,-712.0,0.00038396,11]
[405052300,1770756448559,-323.0,0.00038407,2]
[405052301,1770756448577,-208.28477331,0.00038699,2]
[405052302,1770756448597,-323.0,0.00038763,2]
[405052303,1770756448617,-223.60519585,0.00038799,2]
[405052304,1770756448636,-742.18218896,0.00038971,7]
[405052305,1770756448658,-198.060069,0.00038972,2]
[405052306,1770756448679,-323.0,0.00038976,2]
[405052307,1770756448698,-401.0,0.0003903,11]
[405052308,1770756448719,-712.0,0.00039037,11]
[405052309,1770756448738,-706.0,0.00039037,11]
[405052310,1770756448758,-323.0,0.00039129,7]
[405052311,1770756448778,-601.0,0.00039135,30]
[405052312,1770756448800,-323.0,0.00039146,2]
[405052313,1770756448822,-1505.4266288,0.00039238,2]
[405052314,1770756448842,-500.627,0.0003946,7]
[405052315,1770756448861,-652.30806168,0.0003959,3]
[405052316,1770756448881,-301.44,0.0003959,10]
[405052317,1770756448901,-470.65,0.0003959,10]
[405052318,1770756448921,-392.2,0.0003959,10]
[405052319,1770756448940,-520.55829055,0.00039598,15]
[405052320,1770756448960,-500.0,0.00039598,15]
[405052321,1770756448980,-500.0,0.00039598,15]
[405052322,1770756448999,-500.0,0.00039598,15]
[405052323,1770756449018,-500.0,0.00039598,15]
[405052324,1770756449039,-500.0,0.00039598,7]
[405052325,1770756449060,-500.0,0.00039598,15]
[405052326,1770756449083,-500.0,0.00039598,7]
[405052327,1770756449106,-500.0,0.00039598,15]
[405052328,1770756449129,-205.44759171,0.00039598,15]
[405052329,1770756449150,-349.28584733,0.00039598,15]
[405052330,1770756449170,-500.0,0.00039598,7]
[405052331,1770756449194,-500.0,0.00039598,7]
[405052332,1770756449213,-560.55213672,0.00039598,15]
[405052333,1770756449236,-500.0,0.00039598,15]
[405052334,1770756449256,-500.0,0.00039598,15]
[405052335,1770756449275,-500.0,0.00039598,15]
[405052336,1770756449297,-500.0,0.00039598,7]
[405052337,1770756449318,-500.0,0.00039598,7]
[405052338,1770756449343,-500.0,0.00039598,15]
[405052339,1770756449364,-500.0,0.00039598,15]
[405052340,1770756449384,-161.41062226,0.00039598,15]
[405052341,1770756449404,-350.0,0.00039598,7]
[405052342,1770756449425,-500.0,0.00039598,7]
[405052343,1770756449446,-500.0,0.00039598,15]
[405052344,1770756449468,-500.0,0.00039598,15]
[405052345,1770756449493,-539.78791266,0.00039598,15]
[405052346,1770756449516,-500.0,0.00039598,7]
[405052347,1770756449537,-500.0,0.00039598,15]
[405052348,1770756449558,-500.0,0.00039598,15]
[405052349,1770756449582,-500.0,0.00039598,15]
[405052350,1770756449603,-500.0,0.00039598,7]
[405052351,1770756449623,-500.0,0.00039598,7]
[405052352,1770756449647,-500.0,0.00039598,15]
[405052353,1770756449669,-500.0,0.00039598,15]
[405052354,1770756449690,-500.0,0.00039598,15]
[405052355,1770756449712,-500.0,0.00039598,7]
[405052356,1770756449735,-500.0,0.00039598,7]
[405052357,1770756449756,-500.0,0.00039598,7]
[405052358,1770756449776,-500.0,0.00039598,7]
[405052359,1770756449798,-500.0,0.00039598,15]
[405052360,1770756449820,-500.0,0.00039598,15]
[405052361,1770756449841,-500.0,0.00039598,15]
[405052362,1770756449862,-500.0,0.00039598,7]
[405052363,1770756449883,-500.0,0.00039598,7]
[405052364,1770756449905,-500.0,0.00039598,15]
[405052365,1770756449925,-500.0,0.00039598,7]
[405052366,1770756449946,-500.0,0.00039598,7]
[405052367,1770756449967,-500.0,0.00039598,7]
[405052368,1770756449987,-500.0,0.00039598,7]
[405052369,1770756450007,-500.0,0.00039598,7]
[405052370,1770756450026,-500.0,0.00039598,7]
[405052371,1770756450048,-500.0,0.00039598,7]
[405052372,1770756450067,-157.6937894,0.00039598,7]
[405052373,1770756450087,-500.0,0.00039598,7]
[405052374,1770756450108,-500.0,0.00039598,7]
[405052375,1770756450128,-500.0,0.00039598,7]
[405052376,1770756450148,-500.0,0.00039598,7]
[405052377,1770756450167,-999.10080927,0.00039599,2]
[405052378,1770756450187,-377.29635218,0.00039599,15]
[405052379,1770756450206,-6422.28475432,0.000396,2]
[405052380,1770756549138,-393.17569533,0.00032599,65]
[405052381,1770756549159,-393.17569533,0.00032744,69]
[405052382,1770756549181,-393.17569533,0.00032889,72]
[405052383,1770756549201,-393.17569533,0.00033034,76]
[405052384,1770756549222,-393.17569533,0.00033178,80]
[405052385,1770756549242,-393.17569533,0.00033323,83]
[405052386,1770756549262,-393.17569533,0.00033468,87]
[405052407,1770756631579,-158.96832309,0.00037653,2]
[405052409,1770756631590,-223.60519586,0.00038799,2]
[405052411,1770756631600,-576.0,0.00039135,30]
[405052413,1770756631609,-740.91124423,0.0003958,2]
[405052415,1770756631618,-1326.0,0.00039589,5]
[405052416,1770756631628,-619.6926586,0.0003959,3]
[405052418,1770756631637,-300.0,0.0003959,30]
[405052420,1770756631647,-326.84,0.0003959,10]
[405052422,1770756631656,-272.36,0.0003959,10]
[405052424,1770756631666,-546.55063069,0.00039599,2]
[405052425,1770756631675,-400.0,0.00039599,5]
[405052426,1770756631685,-11724.07194753,0.000396,2]
[405052457,1770756637749,-226.97,0.0003959,10]
[405052459,1770756637759,-317.40073598,0.000396,2]
[405052508,1770756638320,-988.97673161,0.000396,2]
[405052647,1770756639898,-59648.50019191,0.000396,2]
[405052649,1770756639907,-32183.15356537,0.000396,2]
[405052651,1770756639917,-10631.53632389,0.000396,2]
[405052654,1770756639928,-160.27,0.000396,7]
[405052655,1770756639938,-732.56734436,0.000396,2]
[405052657,1770756639947,-400.18291463,0.000396,2]
[405052659,1770756639956,-457.35190243,0.000396,2]
[405052661,1770756639965,-2793.4172,0.000396,2]
[405052663,1770756639975,-376.08526608,0.000396,2]
[405052665,1770756639985,-528.0,0.000396,30]
[405052667,1770756639995,-3041.15428836,0.00039645,2]
[405052773,1770756641040,-3136.51281911,0.00039645,2]
[405052775,1770756641051,-667.92743256,0.00039645,2]
[405052777,1770756641061,-199.18026819,0.00039645,2]
[405052779,1770756641071,-358.52448274,0.00039645,2]
[405052781,1770756641081,-324.0,0.00039675,7]
[405052783,1770756641090,-259.414027,0.00039726,120]
[405052785,1770756641100,-323.0,0.00039752,7]
[405052787,1770756641109,-323.0,0.00039784,7]
[405052789,1770756641119,-250.0,0.000399,10]
[405052791,1770756641129,-2041.60376225,0.000399,2]
[405052888,1770756642082,721.00737644,0.00030137,120]
[405053200,1770756645815,-1631.23736304,0.000399,2]
[405053202,1770756645824,-530.0,0.000399,30]
[405053204,1770756645834,-250.0,0.00039976,2]
[405053206,1770756645845,-250.0,0.00039976,2]
[405053208,1770756645858,-250.0,0.00039976,2]
[405053210,1770756645868,-3000.0,0.00039976,2]
[405053212,1770756645878,-151.0,0.00039976,2]
[405053214,1770756645889,-3000.0,0.00039976,2]
[405053216,1770756645898,-250.0,0.00039976,2]
[405053218,1770756645908,-151.08022891,0.00039976,2]
[405053220,1770756645917,-1992.96137415,0.00039976,2]
[405053222,1770756645930,-1007.03862585,0.00039976,2]
[405053224,1770756645940,-250.0,0.00039976,2]
[405053226,1770756645950,-3000.0,0.00039976,2]
[405053228,1770756645960,-500.0,0.00039976,2]
[405053230,1770756645969,-3000.0,0.00039976,2]
[405053232,1770756645980,-500.0,0.00039976,2]
[405053234,1770756645990,-500.0,0.00039976,2]
[405053236,1770756645999,-3000.0,0.00039976,2]
[405053238,1770756646009,-500.0,0.00039976,2]
[405053240,1770756646018,-3000.0,0.00039976,2]
[405053242,1770756646027,-500.0,0.00039976,2]
[405053244,1770756646037,-3000.0,0.00039976,2]
[405053246,1770756646046,-500.0,0.00039976,2]
[405053248,1770756646055,-500.0,0.00039976,2]
[405053250,1770756646064,-500.0,0.00039976,2]
[405053251,1770756646073,-500.0,0.00039976,2]
[405053254,1770756646083,-500.0,0.00039976,2]
[405053255,1770756646092,-500.0,0.00039976,2]
[405053257,1770756646101,-222.528,0.00039976,2]
[405053259,1770756646111,-619.6926586,0.00039979,3]
[405053261,1770756646120,-324.0,0.0003998,120]
[405053263,1770756646130,-323.0,0.00039987,120]
[405053265,1770756646139,-151.0,0.00039989,120]
[405053267,1770756646148,-151.0,0.00039989,120]
[405053270,1770756646158,-151.0,0.00039989,120]
[405053272,1770756646168,-151.0,0.00039989,120]
[405053274,1770756646178,-2459.00836678,0.0003999,2]
[405053275,1770756646190,-6106.98770046,0.0003999,2]
[405053277,1770756646200,-340.06252669,0.0003999,3]
[405053279,1770756646210,-662.39952628,0.0003999,3]
[405053281,1770756646219,-203.51,0.0003999,3]
[405053283,1770756646228,-610.57,0.0003999,3]
[405053285,1770756646238,-309.44281646,0.0003999,3]
[405053287,1770756646247,-11154.4678548,0.0003999,3]
[405053289,1770756646256,-189.14,0.0003999,10]
[405053291,1770756646266,-1041.66666667,0.00039998,30]
[405053293,1770756646275,-163.19428,0.00039998,30]
[405053296,1770756646290,-151.0,0.00039998,120]
[405053298,1770756646299,-151.0,0.00039998,120]
[405053300,1770756646309,-151.0,0.00039998,10]
[405053302,1770756646318,-151.0,0.00039998,120]
[405053304,1770756646328,-262.239536,0.00039998,120]
[405053306,1770756646337,-250.0,0.00039998,30]
[405053317,1770756646430,-500.0,0.00039998,30]
[405053319,1770756646440,-307.64460425,0.00039998,30]
[405053338,1770756646615,-486.0,0.00039976,30]
[405053341,1770756646625,-192.35539575,0.00039998,30]
[405053342,1770756646634,-151.0,0.00039998,120]
[405053345,1770756646644,-702.61899545,0.00039999,2]
[405053347,1770756646655,-540.41765671,0.00039999,2]
[405053349,1770756646666,-418.725,0.00039999,2]
[405053351,1770756646677,-418.01567224,0.00039999,2]
[405053353,1770756646686,-250.0,0.00039999,30]
[405053355,1770756646696,-3000.0,0.00039999,30]
[405053357,1770756646705,-500.0,0.00039999,30]
[405053359,1770756646715,-331.98432776,0.00039999,30]
[405053361,1770756646726,-168.01567224,0.00039999,30]
[405053363,1770756646735,-4334.12932627,0.0004,120]
[405053432,1770756647426,-1599.87039554,0.0004,120]
[405053434,1770756647438,-400.12960446,0.0004,120]
[405054048,1770756718940,162.0,0.00033507,61]
[405054049,1770756719192,170.0,0.00029123,14]
[405054050,1770756738355,500.0,0.00033366,7]
[405054051,1770756738825,500.0,0.00033604,7]
[405054052,1770756739292,500.0,0.00034391,7]
[405054053,1770756739762,438.82889438,0.00034552,7]
[405054054,1770756739784,61.17110562,0.00034552,7]
[405054055,1770756740236,500.0,0.00035267,30]
[405054056,1770756747455,500.0,0.0003479,7]
[405054066,1770757329016,-500.0,0.00025205,2]
[405054067,1770757329047,-500.0,0.00025205,2]
[405054068,1770757329086,-150.0,0.000253,2]
[405054137,1770757598191,-150.0,0.0002589,2]
[405054138,1770757598214,-120.86172133,0.0002789,2]
[405054141,1770757627087,-2772.39228255,0.00025583,2]
[405054142,1770757627108,-56.13827867,0.0002789,2]
[405054143,1770757627128,-204.0,0.0002989,2]
[405054144,1770757627152,-162.0,0.0003,14]
[405054145,1770757627173,-23.88650632,0.0003189,2]
[405054147,1770757644102,-206.16789249,0.0003189,2]
[405054148,1770757644126,-1904.7109199,0.00034,2]
[405054149,1770757746085,-1095.2890801,0.00034,2]
[405054150,1770757746107,-180.0,0.00034,120]
[405054151,1770757746127,-1472.9453257,0.00034053,2]
[405054152,1770757750450,351.46800418,0.00025583,2]
[405054153,1770757762174,-62.77192502,0.00025583,2]
[405054164,1770757831814,-488.0,0.00037966,30]
[405054166,1770757831824,-1301.03960358,0.00037977,2]
[405054168,1770757831834,-2509.5388704,0.00038699,2]
[405054176,1770757831923,-631.5767285,0.00038699,2]
[405054192,1770757841863,-721.00737644,0.00038699,2]
[405054201,1770757844810,-3598.31510549,0.00038699,2]
[405054202,1770757844821,-447.0,0.00038699,30]
[405054203,1770757844831,-182.18429807,0.00038799,2]
[405054204,1770757844841,-1041.66666667,0.00039294,2]
[405054205,1770757844850,-323.38119826,0.00039647,2]
[405054206,1770757844860,-2843.82508246,0.000398,30]
[405054209,1770757846194,-357.60189639,0.000398,30]
[405054210,1770757846214,-9554.89916457,0.000398,30]
[405054211,1770757948528,2832.19211885,0.00025583,2]
[405054215,1770758092623,-510.40779205,0.00025583,2]
[405054217,1770758208900,150.0,0.00030137,120]
[405054218,1770758242577,-210.59958436,0.00025616,2]
[405054221,1770758745098,-1668.36283256,0.00025903,2]
[405054224,1770758833120,-611.46923755,0.00025903,2]
[405054225,1770758848095,-150.0,0.00035,120]
[405054226,1770758848122,-150.0,0.00035052,30]
[405054227,1770758848151,-158.448055,0.00037398,2]
[405054228,1770758848182,-418.0156722,0.00037485,2]
[405054229,1770758848211,-93.01585024,0.00037726,2]
[405054235,1770758956093,-2129.68989098,0.00025,2]
[405054236,1770758956114,-2770.31010902,0.00025903,2]
[405054237,1770758956148,-184.74099043,0.00025903,2]
[405054238,1770758956170,-400.0,0.00034999,2]
[405054239,1770758956189,-52725.97570022,0.00035,2]
[405054240,1770758965138,-20947.77063996,0.00035,2]
[405054301,1770759040273,-3e-08,0.00036078,2]
[405054382,1770759044122,200.0,0.00035,120]
[405054441,1770759046277,-636.73948132,0.00036078,2]
[405054442,1770759046287,-400.0,0.00036997,2]
[405054443,1770759046298,-17.22539845,0.00036998,2]
[405054459,1770759642933,2568.3,0.000237,2]
[405054462,1770759923229,-499.99956582,0.00024953,2]
[405054463,1770759935135,-1146.01271226,0.00024828,2]
[405054465,1770760026109,-3662.45077388,0.00024828,2]
[405054466,1770760029117,-191.53651386,0.00024828,2]
[405054467,1770760029141,-721.00737644,0.00024979,2]
[405054468,1770760029163,-150.0,0.00025079,2]
[405054469,1770760029185,-2495.57019743,0.00025903,2]
[405054470,1770760029207,-253.0,0.00026574,2]
[405054471,1770760029228,-300.0,0.00026848,2]
[405054472,1770760029250,-44.78760602,0.00027079,2]
[405054475,1770760146115,-2445.03788804,0.00024953,2]
[405054476,1770760146140,-2898.40100519,0.00025903,2]
[405054477,1770760146162,-132.21239398,0.00027079,2]
[405054478,1770760146185,-208.86674926,0.00029079,2]
[405054479,1770760146207,-180.08463978,0.00031662,7]
[405054480,1770760146227,-199.0,0.00034,120]
[405054481,1770760146249,-403.049564,0.00034596,2]
[405054482,1770760146271,-1571.8402088,0.00034935,2]
[405054484,1770760196036,200.0,0.000348,120]
[405054533,1770760238509,-221.81968912,0.00036078,2]
[405054534,1770760238520,-239.94716574,0.00036078,2]
[405054594,1770760240631,-3e-08,0.00036078,2]
[405055035,1770760245301,-55.53603378,0.00036078,2]
[405055037,1770760245313,-74.55971304,0.00036078,2]
[405055170,1770760246440,-262.79767708,0.00036078,2]
[405055172,1770760246450,-1803.36596311,0.00036091,2]
[405055183,1770760246546,-206.93897488,0.00036091,2]
[405056048,1770760314064,2907.65291121,0.00025903,2]
[405056058,1770761234127,-150.0,0.00025376,2]
[405056059,1770761234148,-437.19304355,0.00025903,2]
[405056060,1770761352103,-177.0,0.00027376,2]
[405056061,1770761352125,-204.0,0.00029376,2]
[405056062,1770761352147,-158.06411319,0.00029396,2]
[405056063,1770761352169,-194.31895025,0.00030137,2]
[405056064,1770761352190,-209.7283564,0.00030933,2]
[405056065,1770761352209,-377.51104152,0.00030933,2]
[405056066,1770761352230,-670.45960974,0.00030933,2]
[405056067,1770761352251,-314.13452542,0.00030943,2]
[405056068,1770761352277,-406.0,0.0003256,3]
[405056069,1770761352298,-384.0,0.00034556,2]
[405056070,1770761352319,-1041.66666667,0.00034557,2]
[405056071,1770761352340,-649.16633872,0.00034557,2]
[405056072,1770761352372,-724.55666316,0.00034558,2]
[405056073,1770761356118,-3792.89609202,0.00034558,2]
[405056074,1770761357105,-1124.11359992,0.00034558,2]
[405056075,1770761357126,-500.0,0.00034891,7]
[405056076,1770761357146,-194.31895025,0.00034974,110]
[405056077,1770761357168,-500.0,0.00035891,30]
[405056078,1770761412839,2900.81263723,0.00025903,2]
[405056098,1770761432346,-999.12,0.00036091,29]
[405056100,1770761432361,-500.0,0.0003624,30]
[405056102,1770761432371,-327.88,0.00036739,30]
[405056105,1770761432382,-172.12,0.00036739,30]
[405056107,1770761432392,-182.78369122,0.00036798,3]
[405056108,1770761432403,-2168.09630878,0.00036976,2]
[405056111,1770761432415,-831.90369122,0.00036976,2]
[405056113,1770761432424,-6631.66672409,0.00036998,2]
[405056115,1770761432437,-582.78913105,0.00036998,2]
[405056117,1770761432447,-349.04223448,0.00037446,2]
[405056119,1770761432456,-398.90541084,0.00037446,2]
[405056121,1770761432466,-98.24201812,0.00037593,2]
[405056387,1770761438541,-138.57657914,0.00037593,2]
[405056389,1770761438551,-311.81009451,0.00037593,2]
[405056391,1770761438561,-449.0,0.00037701,30]
[405056393,1770761438572,-4549.72752222,0.00038,2]
[405056395,1770761438581,-151.0,0.00038,31]
[405056397,1770761438591,-153.907958,0.00038356,120]
[405056399,1770761438601,-151.0,0.00038356,120]
[405056401,1770761438611,-259.020412,0.00038356,120]
[405056404,1770761438621,-151.0,0.00038356,120]
[405056406,1770761438635,-151.0,0.00038356,120]
[405056409,1770761438651,-175.138676,0.00038356,120]
[405056411,1770761438668,-151.0,0.00038356,120]
[405056414,1770761438682,-151.0,0.00038356,120]
[405056416,1770761438694,-151.0,0.00038356,120]
[405056419,1770761438710,-173.0,0.00038492,2]
[405056421,1770761438724,-355.99803933,0.0003854,2]
[405056424,1770761438739,-151.0,0.00038599,120]
[405056426,1770761438755,-151.0,0.00038599,120]
[405056429,1770761438769,-154.404732,0.00038599,120]
[405056431,1770761438784,-999.10080927,0.00038599,2]
[405056434,1770761438804,-418.48,0.000386,10]
[405056437,1770761438818,-348.74,0.000386,10]
[405056439,1770761438835,-290.61,0.000386,10]
[405056442,1770761438849,-151.0,0.000386,120]
[405056444,1770761438864,-233.0867,0.000386,120]
[405056447,1770761438879,-156.37228,0.000386,120]